bitfinex/quotes_BTCUSD_20241205
["timestamp","ask_amount","ask_price","bid_price","bid_amount"]
[1733431276925,0.009,98803.0,98802.0,0.202425]
[1733431278038,0.0001757,98812.0,98809.0,0.20241]
[1733431278286,0.0001757,98812.0,98809.0,0.40482]
[1733431279392,0.0091757,98812.0,98809.0,0.20241]
[1733431279650,0.09916972,98812.0,98809.0,0.20241]
[1733431279866,0.09916972,98812.0,98809.0,0.40482]
[1733431280320,0.0091757,98812.0,98811.0,0.202406]
[1733431280970,0.0091757,98812.0,98811.0,0.4813987]
[1733431281194,0.0001757,98812.0,98811.0,0.4813987]
[1733431281418,0.08999402,98847.0,98823.0,0.15]
[1733431281655,0.09086012,98850.0,98846.0,0.202334]
[1733431281875,0.10054215,98850.0,98830.0,0.15]
[1733431282088,0.0008661,98850.0,98847.0,0.20864285]
[1733431282302,0.0008661,98850.0,98849.0,0.352328]
[1733431282726,0.0008661,98850.0,98849.0,0.35863046]
[1733431282946,0.10054215,98850.0,98849.0,0.00630246]
[1733431283183,0.43493231,98850.0,98849.0,0.00630246]
[1733431283452,0.202328,98849.0,98806.0,0.0821]
[1733431283642,0.09009994,98832.0,98824.0,0.202379]
[1733431283872,0.09967605,98831.0,98825.0,0.00604732]
[1733431284098,0.09967605,98831.0,98826.0,0.202375]
[1733431284565,0.09009994,98828.0,98827.0,0.00604699]
[1733431284788,0.09009835,98831.0,98828.0,0.202371]
[1733431285011,0.09009835,98835.0,98815.0,0.202398]
[1733431285238,0.09967605,98834.0,98829.0,0.20841467]
[1733431285453,0.09967605,98834.0,98830.0,0.00604651]
[1733431285669,0.09967605,98834.0,98830.0,0.00579457]
[1733431285887,0.13514991,98839.0,98830.0,0.00579457]
[1733431285888,0.09009835,98839.0,98837.0,0.202353]
[1733431286135,0.09009835,98840.0,98837.0,0.404706]
[1733431286362,0.01004176,98850.0,98837.0,0.404706]
[1733431286363,0.09009835,98842.0,98839.0,0.202348]
[1733431286579,0.09009835,98849.0,98839.0,0.202349]
[1733431286795,0.10071781,98850.0,98846.0,0.404668]
[1733431286796,0.09114011,98850.0,98846.0,0.404668]
[1733431287036,0.00104176,98850.0,98846.0,0.404668]
[1733431287265,0.00104176,98850.0,98848.0,0.20233]
[1733431287738,0.00104176,98850.0,98849.0,0.00579151]
[1733431288202,0.00104176,98850.0,98848.0,0.20233]
[1733431288448,0.00104176,98850.0,98849.0,0.00579151]
[1733431288668,0.00104176,98850.0,98848.0,0.20233]
[1733431288914,0.01004176,98850.0,98849.0,0.00579151]
[1733431289137,0.00104176,98850.0,98849.0,0.00579151]
[1733431289376,0.00104176,98850.0,98848.0,0.20233]
[1733431289670,0.01004176,98850.0,98849.0,0.00579151]
[1733431289943,0.10071781,98850.0,98822.0,0.01037727]
[1733431290196,0.09011556,98847.0,98841.0,0.202343]
[1733431290436,0.09967605,98849.0,98822.0,0.01037727]
[1733431290437,0.09011556,98846.0,98842.0,0.202343]
[1733431290683,0.18979161,98849.0,98825.0,0.202377]
[1733431290951,0.09011556,98845.0,98837.0,0.202353]
[1733431291174,0.09011556,98839.0,98829.0,0.202369]
[1733431291423,0.09011556,98838.0,98837.0,0.202353]
[1733431291645,0.0901449,98844.0,98817.0,0.202394]
[1733431291864,0.0901449,98848.0,98847.0,0.202332]
[1733431292107,0.0201543,98849.0,98847.0,0.202332]
[1733431292108,0.1102992,98849.0,98847.0,0.202332]
[1733431292584,0.202332,98847.0,98798.0,0.202432]
[1733431292845,0.09016446,98833.0,98816.0,0.202394]
[1733431293097,0.202373,98828.0,98816.0,0.202394]
[1733431293338,0.09967605,98827.0,98816.0,0.202394]
[1733431293620,0.09016446,98826.0,98816.0,0.202394]
[1733431293844,0.0206745,98818.0,98801.0,0.0832]
[1733431294050,0.18984051,98817.0,98789.0,0.28565]
[1733431294254,0.09016446,98815.0,98809.0,0.202409]
[1733431294685,0.09016446,98814.0,98789.0,0.0832]
[1733431294921,0.09031111,98810.0,98789.0,0.0832]
[1733431295136,0.13524669,98814.0,98797.0,0.202435]
[1733431295137,0.09031111,98811.0,98797.0,0.202435]
[1733431295344,0.09031111,98810.0,98808.0,0.202411]
[1733431295780,0.09031613,98811.0,98808.0,0.202412]
[1733431296000,0.09031613,98813.0,98810.0,0.202408]
[1733431296420,0.09031613,98813.0,98810.0,0.204139]
[1733431296636,0.09031613,98812.0,98811.0,0.00531252]
[1733431297078,0.18999218,98812.0,98811.0,0.00531252]
[1733431297328,0.23492274,98812.0,98811.0,0.00531252]
[1733431297580,0.23492274,98812.0,98810.0,0.001731]
[1733431297581,0.62475258,98812.0,98810.0,0.001731]
[1733431297800,0.40254665,98811.0,98810.0,0.001731]
[1733431298221,0.58310874,98811.0,98810.0,0.001731]
[1733431298431,0.40254665,98811.0,98810.0,0.001731]
[1733431299119,0.10867605,98811.0,98810.0,0.001731]
[1733431299336,0.09967605,98811.0,98810.0,0.001731]
[1733431299541,0.09967605,98811.0,98810.0,0.00683628]
[1733431300861,0.009,98811.0,98810.0,0.00683628]
[1733431301311,0.018,98811.0,98810.0,0.00683628]
[1733431301744,0.09039833,98826.0,98824.0,0.202379]
[1733431301965,0.13559749,98830.0,98824.0,0.202379]
[1733431301966,0.09039833,98827.0,98824.0,0.202379]
[1733431302219,0.13559749,98828.0,98810.0,0.00683628]
[1733431302448,0.13561439,98823.0,98821.0,0.202384]
[1733431303092,0.23529044,98823.0,98815.0,0.202397]
[1733431303305,0.09041287,98819.0,98815.0,0.202397]
[1733431303520,0.09041287,98818.0,98815.0,0.202397]
[1733431303740,0.09041287,98818.0,98815.0,0.404794]
[1733431304377,0.09041287,98817.0,98815.0,0.202397]
[1733431304803,0.09041287,98816.0,98815.0,0.202397]
[1733431305043,0.13561439,98819.0,98815.0,0.202397]
[1733431305260,0.13561439,98819.0,98810.0,0.001731]
[1733431305494,0.09041126,98816.0,98811.0,0.202406]
[1733431305704,0.13561439,98813.0,98811.0,0.202406]
[1733431306149,0.07023193,98813.0,98812.0,0.15]
[1733431306363,0.27119499,98829.0,98812.0,0.15]
[1733431306364,0.13561439,98836.0,98822.0,0.15]
[1733431306590,0.13561439,98840.0,98836.0,0.15]
[1733431306814,0.13561439,98842.0,98836.0,0.15]
[1733431307030,0.13561439,98842.0,98839.0,0.202348]
[1733431307269,0.13561439,98842.0,98839.0,0.404696]
[1733431307511,0.13561439,98841.0,98839.0,0.202348]
[1733431308686,0.13661439,98841.0,98839.0,0.202348]
[1733431308930,0.001,98841.0,98839.0,0.202348]
[1733431309428,0.13661439,98841.0,98839.0,0.202348]
[1733431309678,0.13661439,98841.0,98840.0,0.15]
[1733431309679,0.001,98841.0,98840.0,0.15]
[1733431309917,0.001,98841.0,98840.0,0.2255]
[1733431310149,0.001,98841.0,98840.0,0.33001198]
[1733431310382,0.0008661,98850.0,98849.0,0.352328]
[1733431310600,0.0008661,98850.0,98849.0,0.63047005]
[1733431310601,1e-07,98850.0,98849.0,0.63047005]
[1733431310821,0.00017576,98850.0,98849.0,0.45683076]
[1733431311466,0.13568678,98875.0,98872.0,0.202281]
[1733431311711,0.02016869,98886.0,98872.0,0.202281]
[1733431311712,0.34498262,98885.0,98872.0,0.202281]
[1733431311925,0.02016869,98886.0,98873.0,0.0048211]
[1733431311926,0.3995624,98884.0,98873.0,0.0048211]
[1733431312161,0.09967605,98884.0,98874.0,0.202277]
[1733431312385,0.3047756,98893.0,98874.0,0.202277]
[1733431312386,0.1025366,98893.0,98874.0,0.20709794]
[1733431312607,0.002249,98888.0,98874.0,0.20709794]
[1733431312847,0.02033267,98883.0,98874.0,0.20709794]
[1733431313519,0.02033267,98883.0,98874.0,0.00482094]
[1733431313733,0.202271,98877.0,98852.0,0.15]
[1733431313954,0.12286927,98883.0,98871.0,0.202282]
[1733431314169,0.12286927,98883.0,98876.0,0.202272]
[1733431314378,0.0008678,98900.0,98887.0,0.202251]
[1733431314606,0.0510366,98894.0,98861.0,0.15]
[1733431314824,0.02044401,98888.0,98877.0,0.0048222]
[1733431315045,0.0515,98898.0,98877.0,0.0048222]
[1733431315046,0.02265666,98898.0,98879.0,0.15]
[1733431315272,0.0483,98938.0,98881.0,0.15]
[1733431315533,0.037,98936.0,98927.0,0.202167]
[1733431315752,0.00058578,98912.0,98910.0,0.15]
[1733431315966,0.09967605,98949.0,98911.0,0.09967605]
[1733431316183,0.09047862,98930.0,98912.0,0.16579508]
[1733431316394,0.00017565,98930.0,98928.0,0.00481399]
[1733431316631,0.202128,98947.0,98928.0,0.00481399]
[1733431316883,0.3968741,98958.0,98928.0,0.00017565]
[1733431317098,0.0008656,98960.0,98930.0,0.404326]
[1733431317321,0.0008656,98960.0,98929.0,0.10447918]
[1733431317322,0.02013959,98954.0,98948.0,0.202124]
[1733431317792,0.02013959,98954.0,98944.0,0.202132]
[1733431317997,0.0008656,98960.0,98944.0,0.202132]
[1733431318248,0.0098681,98950.0,98949.0,0.00479617]
[1733431318456,0.0008681,98950.0,98949.0,0.202124]
[1733431318670,0.0008681,98950.0,98942.0,0.202137]
[1733431318882,0.0098681,98950.0,98949.0,0.00479617]
[1733431319105,0.0008681,98950.0,98949.0,0.00479617]
[1733431319538,0.0098681,98950.0,98943.0,0.15]
[1733431319751,0.0098681,98950.0,98949.0,0.00479061]
[1733431319958,0.0098681,98950.0,98949.0,0.20691461]
[1733431320167,0.0098681,98950.0,98949.0,0.202124]
[1733431320603,0.0008681,98950.0,98949.0,0.00479061]
[1733431320817,0.10054415,98950.0,98890.0,0.17664889]
[1733431321026,0.10054415,98950.0,98919.0,0.202184]
[1733431321027,0.202153,98935.0,98919.0,0.202184]
[1733431321239,0.202143,98940.0,98919.0,0.202184]
[1733431321458,0.23974674,98943.0,98923.0,0.202175]
[1733431321675,0.23974674,98943.0,98912.0,0.06109726]
[1733431321894,0.23974674,98943.0,98923.0,0.202176]
[1733431322099,0.03760974,98943.0,98923.0,0.202176]
[1733431322320,0.03760974,98943.0,98919.0,0.202183]
[1733431322532,0.03760974,98943.0,98923.0,0.202175]
[1733431323181,0.202157,98933.0,98911.0,0.202201]
[1733431323392,0.202165,98929.0,98911.0,0.202201]
[1733431323606,0.202176,98924.0,98903.0,0.202217]
[1733431323820,0.202176,98924.0,98872.0,0.1]
[1733431323821,0.03760974,98916.0,98879.0,0.0815]
[1733431324036,0.30186905,98915.0,98894.0,0.202235]
[1733431324362,0.02004166,98904.0,98879.0,0.0815]
[1733431324597,0.02004166,98904.0,98888.0,0.202248]
[1733431324598,0.202218,98903.0,98888.0,0.202248]
[1733431324782,0.02004166,98904.0,98888.0,0.202248]
[1733431324999,0.02004166,98904.0,98875.0,0.10749726]
[1733431325000,0.202218,98903.0,98885.0,0.202253]
[1733431325156,0.03760974,98901.0,98885.0,0.202253]
[1733431325371,0.202224,98900.0,98874.0,0.202275]
[1733431325571,0.30190005,98900.0,98874.0,0.202275]
[1733431325948,0.50412405,98900.0,98881.0,0.202261]
[1733431326150,0.202235,98895.0,98881.0,0.202261]
[1733431326356,0.202235,98895.0,98875.0,0.202275]
[1733431326357,0.404471,98895.0,98875.0,0.202275]
[1733431326564,0.404471,98895.0,98845.0,0.302336]
[1733431326565,0.03760974,98886.0,98882.0,0.00438124]
[1733431326778,0.03760974,98886.0,98850.0,0.06109726]
[1733431326779,0.01992637,98883.0,98850.0,0.06109726]
[1733431326996,0.11960242,98883.0,98869.0,0.202286]
[1733431327223,0.202261,98882.0,98869.0,0.202286]
[1733431327424,0.202274,98876.0,98862.0,0.2023]
[1733431327801,0.202261,98882.0,98863.0,0.202298]
[1733431328146,0.11960242,98883.0,98850.0,0.16077331]
[1733431328376,0.12860242,98883.0,98851.0,0.24967605]
[1733431328585,0.202261,98882.0,98869.0,0.202285]
[1733431328813,0.202261,98882.0,98870.0,0.00439796]
[1733431329022,0.212261,98882.0,98863.0,0.008]
[1733431329250,0.203261,98882.0,98865.0,0.202295]
[1733431329473,0.202261,98882.0,98865.0,0.40459]
[1733431329683,0.12460242,98883.0,98866.0,0.0043986]
[1733431330095,0.12460242,98883.0,98868.0,0.202289]
[1733431330510,0.202261,98882.0,98870.0,0.202285]
[1733431330757,0.12460242,98883.0,98869.0,0.00439812]
[1733431330758,0.09967605,98881.0,98869.0,0.00439812]
[1733431330929,0.09967605,98881.0,98869.0,0.007]
[1733431330930,0.202281,98872.0,98869.0,0.007]
[1733431331150,0.03760974,98875.0,98870.0,0.202285]
[1733431331362,0.202245,98890.0,98871.0,0.00423952]
[1733431331363,0.03890274,98890.0,98871.0,0.00423952]
[1733431331566,0.11960242,98883.0,98871.0,0.20652252]
[1733431331781,0.01,98882.0,98872.0,0.09967605]
[1733431332012,0.001,98882.0,98881.0,0.202262]
[1733431332230,0.02054573,98898.0,98897.0,0.20223]
[1733431332446,0.00017533,98901.0,98898.0,0.202228]
[1733431332651,0.00017533,98901.0,98898.0,0.404456]
[1733431332865,0.00017533,98901.0,98900.0,0.202224]
[1733431333313,0.00017533,98901.0,98900.0,0.20645917]
[1733431333754,0.00017533,98901.0,98900.0,0.00423517]
[1733431333986,0.00017533,98901.0,98850.0,0.17837849]
[1733431333987,0.202241,98892.0,98876.0,0.202272]
[1733431334212,0.202241,98892.0,98865.0,0.15]
[1733431334213,0.009,98882.0,98877.0,0.00423358]
[1733431334437,0.002,98898.0,98868.0,0.202289]
[1733431334646,0.09967605,98897.0,98878.0,0.00423342]
[1733431334855,0.202232,98896.0,98879.0,0.202267]
[1733431335070,0.202236,98894.0,98879.0,0.202267]
[1733431335282,0.09967605,98894.0,98885.0,0.202254]
[1733431335490,0.30191305,98894.0,98881.0,0.202263]
[1733431335700,0.09967605,98894.0,98886.0,0.00423226]
[1733431335964,0.09967605,98894.0,98881.0,0.202263]
[1733431335965,0.03778507,98901.0,98900.0,1.09586195]
[1733431336171,0.13746112,98901.0,98900.0,1.10009196]
[1733431336419,0.05829763,98901.0,98900.0,1.10009196]
[1733431336879,0.00017533,98901.0,98900.0,1.26086527]
[1733431337132,0.00017533,98901.0,98900.0,1.41086527]
[1733431337952,0.00017533,98901.0,98900.0,1.41986527]
[1733431338431,0.00317533,98901.0,98900.0,1.10009196]
[1733431338598,0.00017533,98901.0,98900.0,1.10009196]
[1733431338762,0.00017533,98901.0,98900.0,1.10909196]
[1733431338969,0.00117533,98901.0,98900.0,1.11209196]
[1733431339172,0.00017533,98901.0,98900.0,1.10909196]
[1733431340010,0.03778507,98901.0,98900.0,1.10009196]
[1733431340241,0.03778507,98901.0,98900.0,1.06369]
[1733431340410,0.03778507,98901.0,98900.0,1.07269]
[1733431340969,0.03890274,98899.0,98854.0,0.06109726]
[1733431341174,0.03760974,98883.0,98856.0,0.09967605]
[1733431341388,0.202261,98882.0,98862.0,0.202301]
[1733431341610,0.202261,98882.0,98856.0,0.09967605]
[1733431341824,0.0899177,98895.0,98869.0,0.06109726]
[1733431342034,0.0899177,98895.0,98876.0,0.202271]
[1733431342035,0.202235,98895.0,98876.0,0.202271]
[1733431342246,0.202235,98895.0,98877.0,0.202269]
[1733431342452,0.007,98883.0,98879.0,0.202266]
[1733431342681,0.0899177,98896.0,98879.0,0.202266]
[1733431342875,0.202232,98896.0,98879.0,0.202266]
[1733431343094,0.202232,98896.0,98871.0,0.202283]
[1733431343095,0.009,98895.0,98871.0,0.202283]
[1733431343312,0.202255,98885.0,98866.0,0.404585]
[1733431343548,0.009,98895.0,98866.0,0.30196905]
[1733431343549,0.20225,98888.0,98866.0,0.30196905]
[1733431343768,0.20225,98888.0,98862.0,0.2023]
[1733431344006,0.20225,98888.0,98856.0,0.008]
[1733431344007,0.03760974,98879.0,98861.0,0.202303]
[1733431344243,0.202269,98878.0,98861.0,0.202303]
[1733431344460,0.202269,98878.0,98871.0,0.002]
[1733431344903,0.202281,98873.0,98857.0,0.202312]
[1733431345132,0.202281,98873.0,98861.0,0.007]
[1733431345370,0.01989948,98872.0,98861.0,0.007]
[1733431345970,0.009,98878.0,98861.0,0.007]
[1733431345971,0.009,98878.0,98874.0,0.404552]
[1733431346307,0.009,98878.0,98876.0,0.202273]
[1733431346531,0.009,98878.0,98877.0,0.38897331]
[1733431347372,0.09011962,98900.0,98885.0,0.202255]
[1733431347585,0.09029495,98901.0,98881.0,0.06109726]
[1733431347784,0.09011962,98900.0,98892.0,0.20224]
[1733431347997,0.09011962,98900.0,98887.0,0.20225]
[1733431348213,0.02008969,98898.0,98891.0,0.202241]
[1733431348416,0.11020931,98898.0,98891.0,0.202241]
[1733431348625,0.09011962,98897.0,98888.0,0.00465773]
[1733431348837,0.03760974,98895.0,98885.0,0.202255]
[1733431349043,0.03760974,98895.0,98878.0,0.09967605]
[1733431349252,0.12772936,98895.0,98873.0,0.06109726]
[1733431349455,0.02008969,98898.0,98879.0,0.06575447]
[1733431349456,0.09020805,98894.0,98879.0,0.06575447]
[1733431349665,0.09020805,98893.0,98886.0,0.202251]
[1733431349873,0.09020805,98893.0,98880.0,0.09967605]
[1733431349874,0.09020805,98894.0,98890.0,0.202244]
[1733431350289,0.09020805,98896.0,98892.0,0.20224]
[1733431350698,0.09020805,98896.0,98892.0,0.40448]
[1733431350911,0.13531208,98895.0,98892.0,0.30191605]
[1733431351149,0.009,98894.0,98893.0,0.30191405]
[1733431351356,0.009,98894.0,98893.0,0.30656855]
[1733431351556,0.009,98894.0,98893.0,0.2068925]
[1733431351788,0.009,98894.0,98893.0,0.0046545]
[1733431351991,0.09025307,98894.0,98893.0,0.0046545]
[1733431352193,0.13531208,98895.0,98888.0,0.202247]
[1733431352390,0.51376401,98894.0,98893.0,0.2068925]
[1733431352594,0.3333479,98894.0,98888.0,0.202247]
[1733431352821,0.18041611,98895.0,98893.0,0.0046545]
[1733431352991,0.3334433,98894.0,98892.0,0.005]
[1733431353203,0.3334433,98894.0,98888.0,0.202247]
[1733431353204,0.3334433,98893.0,98888.0,0.202247]
[1733431353381,0.18066626,98889.0,98888.0,0.202247]
[1733431353581,0.3334433,98889.0,98888.0,0.202247]
[1733431354420,0.3334433,98889.0,98888.0,0.208247]
[1733431354620,0.18066626,98889.0,98888.0,0.208247]
[1733431354995,0.003,98889.0,98888.0,0.208247]
[1733431355671,0.003,98889.0,98888.0,0.202247]
[1733431355865,0.003,98889.0,98888.0,0.211247]
[1733431356329,0.13557989,98889.0,98888.0,0.211247]
[1733431356572,0.09038987,98891.0,98890.0,0.06109726]
[1733431356760,0.00017533,98901.0,98899.0,0.202226]
[1733431357191,0.00017533,98901.0,98899.0,0.36299931]
[1733431357447,0.00017533,98901.0,98899.0,0.51299931]
[1733431358776,0.00017533,98901.0,98899.0,0.202226]
[1733431359001,0.09054673,98901.0,98899.0,0.202226]
[1733431359230,0.09123522,98900.0,98899.0,0.202226]
[1733431359440,0.0008649,98900.0,98899.0,0.26332326]
[1733431359667,0.0038649,98900.0,98899.0,0.27232326]
[1733431359904,0.0008649,98900.0,98899.0,0.27232326]
[1733431360133,0.0038649,98900.0,98899.0,0.27232326]
[1733431360359,0.0038649,98900.0,98899.0,0.26332326]
[1733431360568,0.09423478,98900.0,98899.0,0.26332326]
[1733431360782,0.0038649,98900.0,98899.0,0.27232326]
[1733431362903,0.0038649,98900.0,98899.0,0.52665266]
[1733431363144,0.0038649,98900.0,98899.0,0.58146825]
[1733431363332,0.0038649,98900.0,98899.0,0.51765266]
[1733431363556,0.0008649,98900.0,98899.0,0.52665266]
[1733431363761,0.0018649,98900.0,98899.0,0.52665266]
[1733431364139,0.0008649,98900.0,98899.0,0.52665266]
[1733431364369,0.0008649,98900.0,98899.0,0.52765266]
[1733431364777,0.0008649,98900.0,98899.0,0.51865266]
[1733431365188,0.0008649,98900.0,98899.0,0.52765266]
[1733431365396,2.3e-07,98901.0,98900.0,0.21109726]
[1733431365604,2.3e-07,98901.0,98900.0,0.31077331]
[1733431366021,2.3e-07,98901.0,98900.0,0.31541764]
[1733431366221,2.3e-07,98901.0,98900.0,0.41333686]
[1733431366484,2.3e-07,98901.0,98900.0,0.49103686]
[1733431366889,2.3e-07,98901.0,98900.0,0.49503686]
[1733431367327,0.13555549,98930.0,98923.0,0.28879726]
[1733431367537,0.27197908,98950.0,98949.0,0.352124]
[1733431367538,0.0008681,98950.0,98949.0,0.352124]
[1733431367746,0.0008681,98950.0,98949.0,0.51289731]
[1733431367954,0.0008681,98950.0,98949.0,0.65213214]
[1733431368160,1e-07,98950.0,98949.0,0.8029527]
[1733431368364,0.13565996,98967.0,98959.0,0.202103]
[1733431368574,0.13565996,98978.0,98959.0,0.45177905]
[1733431368779,0.00104115,98960.0,98959.0,0.51716835]
[1733431368985,0.0007732,98960.0,98959.0,0.51716835]
[1733431369190,0.0007732,98960.0,98959.0,0.52107413]
[1733431369804,0.0007732,98960.0,98959.0,0.53007413]
[1733431370010,0.0007732,98960.0,98959.0,0.53407413]
[1733431370216,0.0007732,98960.0,98959.0,0.45968483]
[1733431370422,0.0007732,98960.0,98959.0,0.45568483]
[1733431370601,0.0007732,98960.0,98959.0,0.45968483]
[1733431371159,0.0007732,98960.0,98959.0,0.52078209]
[1733431371568,0.0007732,98960.0,98959.0,0.52978209]
[1733431372186,2e-07,98960.0,98959.0,0.54119449]
[1733431372621,2e-07,98960.0,98959.0,0.56726537]
[1733431372831,2e-07,98960.0,98959.0,0.55585297]
[1733431373045,2e-07,98960.0,98959.0,0.55185297]
[1733431373262,0.0010002,98960.0,98959.0,0.52378209]
[1733431373755,2e-07,98960.0,98959.0,0.51678209]
[1733431373960,0.0010002,98960.0,98959.0,0.53278209]
[1733431374818,2e-07,98960.0,98959.0,0.6092717]
[1733431375059,2e-07,98960.0,98959.0,0.7104717]
[1733431375261,2e-07,98960.0,98959.0,0.7014717]
[1733431375471,2e-07,98960.0,98959.0,0.7104717]
[1733431375682,0.0008654,98990.0,98989.0,0.41313926]
[1733431375893,0.0008654,98990.0,98989.0,0.51281531]
[1733431376098,0.00104086,98990.0,98989.0,0.51281531]
[1733431376532,0.00104086,98990.0,98989.0,0.5167004]
[1733431376958,0.00104086,98990.0,98989.0,0.00388509]
[1733431377169,0.00104086,98990.0,98989.0,0.01288509]
[1733431377380,0.00304086,98990.0,98989.0,0.009]
[1733431377559,0.00304086,98990.0,98989.0,0.17365667]
[1733431377815,0.00104086,98990.0,98989.0,0.17365667]
[1733431378225,0.00604086,98990.0,98989.0,0.31465667]
[1733431378645,0.00604086,98990.0,98989.0,0.32365667]
[1733431379062,0.00604086,98990.0,98989.0,0.31465667]
[1733431379479,0.00604086,98990.0,98989.0,0.32365667]
[1733431379678,0.00604086,98990.0,98989.0,0.39643194]
[1733431379885,0.00604086,98990.0,98989.0,0.32365667]
[1733431380094,0.00104086,98990.0,98989.0,0.32365667]
[1733431380315,0.00104086,98990.0,98989.0,0.11255941]
[1733431380519,0.00104086,98990.0,98989.0,0.17365667]
[1733431380955,0.00404086,98990.0,98989.0,0.32365667]
[1733431381478,0.00404086,98990.0,98989.0,0.39643194]
[1733431381679,0.00404086,98990.0,98989.0,0.47583194]
[1733431381829,0.00404086,98990.0,98989.0,0.40305667]
[1733431382732,0.00404086,98990.0,98989.0,0.32365667]
[1733431384125,0.01475176,99001.0,98990.0,0.20204]
[1733431384529,0.03468634,99001.0,98991.0,0.00423141]
[1733431384700,0.03468634,99001.0,98992.0,0.202036]
[1733431384917,0.01475176,99001.0,98993.0,0.00423117]
[1733431385345,0.20203,98996.0,98990.0,0.006]
[1733431385563,0.0786,98999.0,98994.0,0.00423259]
[1733431385781,0.202034,98993.0,98989.0,0.00017546]
[1733431385990,0.09967605,98998.0,98989.0,0.00017546]
[1733431385991,0.202036,98992.0,98989.0,0.00017546]
[1733431386612,0.404073,98992.0,98990.0,0.001]
[1733431386763,0.404073,98992.0,98989.0,0.00017546]
[1733431387197,0.001,98992.0,98989.0,0.00017546]
[1733431387817,0.001,98992.0,98989.0,0.00517546]
[1733431388361,0.001,98992.0,98990.0,0.20204]
[1733431388788,0.001,98992.0,98990.0,0.20592689]
[1733431389371,0.202008,99006.0,98990.0,0.40796689]
[1733431389810,0.005,98992.0,98990.0,0.40796689]
[1733431390601,0.00044062,99010.0,98998.0,0.202023]
[1733431390812,0.02275176,99001.0,98998.0,0.202023]
[1733431391246,0.02275176,99001.0,98999.0,0.00387741]
[1733431391476,0.02275176,99001.0,99000.0,0.20202]
[1733431391684,0.01475176,99001.0,99000.0,0.20202]
[1733431391893,0.01475176,99001.0,99000.0,0.20590084]
[1733431392515,0.01475176,99001.0,99000.0,0.00388084]
[1733431393141,0.01475176,99001.0,98989.0,0.00017546]
[1733431393561,0.01475176,99001.0,99000.0,0.001]
[1733431393562,0.01975176,99001.0,99000.0,0.001]
[1733431393987,0.202022,98999.0,98989.0,0.00017546]
[1733431394207,0.01975176,99001.0,98989.0,0.00017546]
[1733431394208,0.02475176,99001.0,99000.0,0.001]
[1733431394414,0.0623615,99001.0,99000.0,0.00488]
[1733431394621,0.0623615,99001.0,99000.0,0.001]
[1733431394827,0.0673615,99001.0,99000.0,0.002]
[1733431395039,0.0673615,99001.0,99000.0,8.514e-05]
[1733431395254,0.16703755,99001.0,99000.0,8.514e-05]
[1733431395470,0.16703755,99001.0,99000.0,0.00396931]
[1733431395684,0.1,98993.0,98989.0,0.00017546]
[1733431395905,0.20209,98966.0,98940.0,0.06109726]
[1733431396123,0.20209,98966.0,98935.0,0.0775]
[1733431396124,0.03760974,98971.0,98952.0,0.06109726]
[1733431396346,0.08967289,98979.0,98975.0,0.20207]
[1733431396622,0.13450933,98976.0,98975.0,0.20207]
[1733431396840,0.13450933,98976.0,98953.0,0.09967605]
[1733431396841,0.12727917,98981.0,98958.0,0.06109726]
[1733431397050,0.03760974,98981.0,98967.0,0.06109726]
[1733431397264,0.08966943,98986.0,98959.0,0.09967605]
[1733431397265,0.202048,98986.0,98959.0,0.06109726]
[1733431397473,0.03760974,98981.0,98969.0,0.202081]
[1733431397695,0.03760974,98981.0,98968.0,0.00426239]
[1733431397919,0.08966943,98985.0,98963.0,0.06109726]
[1733431398130,0.08966943,98986.0,98968.0,0.06109726]
[1733431398345,0.08966943,98986.0,98980.0,0.202059]
[1733431398558,0.57639524,98993.0,98980.0,0.202059]
[1733431398559,0.08966943,98984.0,98980.0,0.202059]
[1733431398786,0.08966943,98984.0,98969.0,0.00426219]
[1733431399004,0.08966943,98984.0,98977.0,0.202066]
[1733431399217,0.007,98981.0,98977.0,0.202066]
[1733431399427,0.03760974,98981.0,98977.0,0.202066]
[1733431399665,0.12727917,98981.0,98978.0,0.20134383]
[1733431399888,0.08966943,98992.0,98978.0,0.09967605]
[1733431400143,0.08966943,98990.0,98977.0,0.06109726]
[1733431400387,0.13468469,98993.0,98977.0,0.06109726]
[1733431400388,0.08966943,98992.0,98988.0,0.202044]
[1733431400636,0.13468469,98993.0,98990.0,0.202039]
[1733431400858,0.13476184,98991.0,98983.0,0.202054]
[1733431401082,0.13476184,98991.0,98978.0,0.001]
[1733431401083,0.007,98981.0,98978.0,0.001]
[1733431401562,0.007,98981.0,98978.0,0.203064]
[1733431401819,0.007,98981.0,98978.0,0.405128]
[1733431402071,0.007,98981.0,98978.0,0.203064]
[1733431402295,0.13476247,98985.0,98968.0,0.06109726]
[1733431402536,0.13476247,98981.0,98978.0,0.005]
[1733431402753,0.202042,98990.0,98978.0,0.005]
[1733431402754,0.13476247,98982.0,98978.0,0.005]
[1733431402981,0.17934578,98986.0,98978.0,0.005]
[1733431402982,0.01991619,98981.0,98979.0,0.202063]
[1733431403202,0.02391619,98981.0,98979.0,0.202063]
[1733431403460,0.02391619,98981.0,98980.0,0.00361559]
[1733431403687,0.16271845,98981.0,98980.0,0.00361559]
[1733431403934,0.14279579,98981.0,98980.0,0.00361559]
[1733431404216,0.13479579,98987.0,98986.0,0.06109726]
[1733431404455,0.13479579,98995.0,98992.0,0.202036]
[1733431404664,0.13479579,98996.0,98992.0,0.202036]
[1733431404880,0.13479579,98996.0,98992.0,0.20564833]
[1733431405121,0.13479579,98997.0,98992.0,0.20564833]
[1733431405334,0.01475176,99001.0,98992.0,0.36642164]
[1733431405544,0.01475176,99001.0,98992.0,0.00361233]
[1733431405762,0.01475176,99001.0,98992.0,0.01261233]
[1733431405763,0.13479579,98996.0,98992.0,0.01261233]
[1733431405998,0.13997115,98993.0,98990.0,0.202038]
[1733431406207,0.13997115,98993.0,98992.0,0.35822161]
[1733431406208,0.00517536,98993.0,98992.0,0.35822161]
[1733431406429,0.00517536,98993.0,98992.0,0.50822161]
[1733431406641,0.00917536,98993.0,98992.0,0.51183157]
[1733431407291,0.00917536,98993.0,98992.0,0.60173157]
[1733431407534,0.01475176,99001.0,99000.0,0.05650956]
[1733431407535,1.2e-07,99001.0,99000.0,0.05650956]
[1733431407738,7.4e-07,99010.0,99009.0,0.25851056]
[1733431407953,7.4e-07,99010.0,99009.0,0.50818661]
[1733431408185,7.4e-07,99010.0,99009.0,0.51178988]
[1733431408397,7.4e-07,99010.0,99009.0,0.58316937]
[1733431408598,7.4e-07,99010.0,99009.0,0.51178988]